bitfinex/quotes_ETHUSD_20251031
["timestamp","ask_amount","ask_price","bid_price","bid_amount"]
[1761905073524,0.00020001,3851.5,3851.4,5.48420309]
[1761905073727,0.00020001,3851.5,3851.4,5.45823851]
[1761905077307,0.00940001,3851.7,3851.6,2.22293052]
[1761905077519,0.00940001,3851.7,3851.6,4.90754105]
[1761905077726,0.00940001,3851.7,3851.6,4.10896105]
[1761905077927,0.00940001,3851.7,3851.6,4.57786105]
[1761905079307,0.00940001,3851.7,3851.6,5.97754105]
[1761905079505,0.00940001,3851.7,3851.6,5.95157782]
[1761905080001,0.00940001,3851.7,3851.6,5.48007782]
[1761905081044,0.93400001,3851.7,3851.6,5.02977782]
[1761905081255,0.46510001,3851.7,3851.6,5.05574105]
[1761905081739,0.00940001,3851.7,3851.6,5.05574105]
[1761905082532,0.46510001,3851.7,3851.6,5.05574105]
[1761905082710,0.93400001,3851.7,3851.6,5.05574105]
[1761905083109,0.46510001,3851.7,3851.6,5.05574105]
[1761905083316,0.00940001,3851.7,3851.6,5.05574105]
[1761905083857,0.00940001,3851.7,3851.6,5.50604105]
[1761905084061,0.00940001,3851.7,3851.6,5.48007782]
[1761905084747,0.00940001,3851.7,3851.6,5.02977782]
[1761905084946,0.00940001,3851.7,3851.6,5.05574105]
[1761905085850,0.93400001,3851.7,3851.6,5.05574105]
[1761905086150,0.46510001,3851.7,3851.6,5.05574105]
[1761905087452,0.93400001,3851.7,3851.6,5.05574105]
[1761905087837,0.46510001,3851.7,3851.6,5.05574105]
[1761905088151,0.00940001,3851.7,3851.6,5.05574105]
[1761905088939,0.00940001,3851.7,3851.6,5.50604105]
[1761905089139,0.00940001,3851.7,3851.6,5.48007782]
[1761905089442,0.00940001,3851.7,3851.6,5.02977782]
[1761905089646,0.00940001,3851.7,3851.6,5.05574105]
[1761905090255,0.01040001,3851.7,3851.6,5.05574105]
[1761905090852,0.00960001,3851.7,3851.6,5.05574105]
[1761905094269,0.00960001,3851.7,3851.6,5.52724105]
[1761905094562,0.00960001,3851.7,3851.6,5.50127782]
[1761905095527,0.00960001,3851.7,3851.6,5.02977782]
[1761905095728,0.00960001,3851.7,3851.6,5.52724105]
[1761905095965,0.00960001,3851.7,3851.6,5.50127782]
[1761905096132,0.00960001,3851.7,3851.6,5.97277782]
[1761905096533,0.00960001,3851.7,3851.6,5.50127782]
[1761905098167,0.49850001,3851.7,3851.6,4.49467382]
[1761905098468,0.97860001,3851.7,3851.6,3.64857375]
[1761905098673,0.97860001,3851.7,3851.6,4.14707376]
[1761905098989,0.97860001,3851.7,3851.6,3.74156976]
[1761905099377,0.97860001,3851.7,3851.6,4.14707376]
[1761905101884,0.49850001,3851.7,3851.6,4.14707376]
[1761905102252,0.97860001,3851.7,3851.6,4.14707376]
[1761905102684,0.97780001,3851.7,3851.6,4.14707376]
[1761905104658,0.97780001,3851.7,3851.6,0.43146723]
[1761905104884,0.97780001,3851.7,3851.6,2.22293052]
[1761905105260,0.97780001,3851.7,3851.4,0.78216001]
[1761905105582,0.4889,3851.5,3851.4,0.407504]
[1761905106056,0.969,3851.5,3851.4,0.407504]
[1761905106688,0.969,3851.5,3851.4,2.2250249]
[1761905106992,0.969,3851.5,3851.4,0.407504]
[1761905107374,0.969,3851.5,3851.4,2.2250249]
[1761905108163,0.969,3851.5,3851.4,2.3546249]
[1761905119415,0.969,3851.5,3851.4,0.537104]
[1761905119712,0.969,3851.5,3851.4,2.3546249]
[1761905122981,0.969,3851.5,3851.4,2.38058948]
[1761905127114,0.969,3851.5,3851.4,2.3546249]
[1761905127798,0.9682,3851.5,3851.4,2.3546249]
[1761905132727,0.9682,3851.5,3851.4,0.1316]
[1761905132914,0.9682,3851.5,3851.4,0.002]
[1761905133439,1.0978,3851.5,3851.4,0.002]
[1761905135121,2.91527371,3851.5,3851.4,0.002]
[1761905135326,4.31495371,3851.5,3851.4,0.002]
[1761905135707,16.35453948,3851.1,3851.0,0.002]
[1761905136039,1.81785129,3850.7,3850.6,0.002]
[1761905136241,2.46965129,3850.7,3850.6,0.002]
[1761905136467,4.36723129,3850.7,3850.6,0.002]
[1761905136744,2.54938,3850.7,3850.6,0.002]
[1761905136957,1.1497,3850.7,3850.6,0.002]
[1761905138203,2.96755129,3850.7,3850.6,0.002]
[1761905139435,1.1497,3850.7,3850.6,0.002]
[1761905145966,0.6518,3850.7,3850.6,1.8198985]
[1761905146181,0.1296,3850.8,3850.7,1.81785129]
[1761905146385,0.4979,3851.1,3850.7,0.4763]
[1761905146552,0.4979,3851.1,3850.9,1.8177502]
[1761905146936,0.4982,3851.0,3850.9,1.8177502]
[1761905147148,0.4982,3851.0,3850.7,1.81781023]
[1761905147366,0.9961,3851.0,3850.7,1.81781023]
[1761905147921,0.9961,3851.0,3850.7,1.81784975]
[1761905148169,0.9961,3851.0,3850.8,1.81779737]
[1761905148536,0.1856,3851.2,3850.7,1.81785129]
[1761905148736,0.1856,3851.2,3851.1,1.81766248]
[1761905149146,0.6838,3851.2,3851.0,1.81770418]
[1761905149375,0.6838,3851.2,3850.9,1.94735404]
[1761905149376,1.1817,3851.2,3850.9,1.94735404]
[1761905149672,1.1817,3851.2,3851.0,1.81769166]
[1761905150245,0.3204,3851.1,3851.0,1.81769166]
[1761905150950,0.1306,3851.4,3851.1,1.81764353]
[1761905151446,0.001,3851.4,3850.9,0.02596795]
[1761905151775,0.001,3851.4,3851.1,0.1296]
[1761905152341,0.4643,3851.4,3851.2,1.8176124]
[1761905152879,0.4948,3851.3,3851.2,1.8176124]
[1761905153078,0.494,3851.3,3851.2,1.8176124]
[1761905153282,0.494,3851.3,3851.1,0.1296]
[1761905153483,0.494,3851.3,3851.1,1.94724432]
[1761905154043,0.494,3851.3,3851.2,1.81761528]
[1761905154376,0.4643,3851.4,3851.1,0.1296]
[1761905154543,0.001,3851.4,3851.3,1.81756809]
[1761905155111,0.4958,3851.4,3851.3,1.81756809]
[1761905155406,0.9591,3851.4,3851.2,1.81758972]
[1761905155610,0.3486,3851.2,3851.1,0.1296]
[1761905156011,0.8119,3851.2,3850.7,0.78035482]
[1761905156213,0.4633,3851.2,3850.9,0.1296]
[1761905156503,0.4948,3851.0,3850.9,0.1296]
[1761905156907,0.9581,3851.0,3850.9,0.1296]
[1761905158187,0.9581,3851.0,3850.6,0.002]
[1761905158375,0.5421,3850.7,3850.6,0.002]
[1761905158793,1.0054,3850.7,3850.6,0.002]
[1761905160514,0.3486,3850.7,3850.6,1.8198985]
[1761905161220,0.3486,3850.7,3850.6,0.002]
[1761905161523,0.8119,3850.7,3850.6,0.002]
[1761905165509,0.8119,3850.7,3850.6,1.8198985]
[1761905165708,0.3486,3850.7,3850.6,1.8198985]
[1761905166726,0.001,3851.4,3850.7,1.81785129]
[1761905166912,0.1296,3851.3,3850.9,1.81771295]
[1761905167107,0.1296,3851.3,3851.0,1.81768576]
[1761905167413,0.5929,3851.3,3851.0,1.81768576]
[1761905167649,0.4948,3851.1,3851.0,1.81768576]
[1761905169065,0.4948,3851.1,3850.6,0.1316]
[1761905169237,0.4948,3851.1,3850.6,1.9494907]
[1761905169413,0.4948,3851.1,3850.8,1.81780091]
[1761905169632,0.9581,3851.1,3850.6,0.1316]
[1761905169830,0.5437,3850.7,3850.6,1.94945533]
[1761905170143,0.6568,3851.0,3850.8,1.81777304]
[1761905170650,0.4948,3850.9,3850.8,1.81777304]
[1761905173551,0.4633,3851.1,3850.8,1.81777304]
[1761905174043,0.4633,3851.1,3851.0,1.81770968]
[1761905175060,0.9581,3851.1,3851.0,1.81770968]
[1761905175853,0.9581,3851.1,3850.8,1.81777304]
[1761905175854,0.9581,3851.1,3850.6,1.94946232]
[1761905176248,0.4948,3851.1,3850.6,1.94946232]
[1761905176453,0.4633,3851.0,3850.8,1.81776067]
[1761905176653,0.4633,3851.0,3850.9,1.81775688]
[1761905177156,0.9581,3851.0,3850.9,1.81775688]
[1761905177757,0.9581,3851.0,3850.6,0.1316]
[1761905177960,0.4971,3850.9,3850.8,1.81780409]
[1761905178172,0.4963,3850.9,3850.8,1.81780409]
[1761905178374,0.9889,3850.9,3850.8,1.81780409]
[1761905178970,0.4926,3850.9,3850.8,1.81780409]
[1761905179173,0.1296,3851.3,3851.1,1.81765418]
[1761905179671,0.4926,3851.2,3851.1,1.81765418]
[1761905180031,0.4926,3851.2,3850.9,1.81771181]
[1761905180235,0.4858,3851.0,3850.9,1.81771181]
[1761905181870,0.9363,3851.0,3850.9,1.81771181]
[1761905182953,0.4858,3851.0,3850.9,1.81771181]
[1761905187161,0.9363,3851.0,3850.9,1.81771181]
[1761905187379,0.9363,3851.0,3850.9,1.81775688]
[1761905192497,0.9363,3851.0,3850.6,0.1316]
[1761905192814,0.3702,3850.8,3850.7,1.81785129]
[1761905193186,0.4505,3851.1,3850.9,0.002]
[1761905193383,0.4505,3851.1,3851.0,1.81770968]
[1761905193583,0.4868,3851.0,3850.9,1.81974832]
[1761905194205,0.9373,3851.0,3850.9,1.81974832]
[1761905194482,0.4868,3851.0,3850.9,1.81974832]
[1761905195216,0.9373,3851.0,3850.9,1.81974832]
[1761905195714,0.9373,3851.0,3850.9,0.002]
[1761905199191,0.9373,3851.0,3850.9,1.81975688]
[1761905201123,0.4868,3851.0,3850.9,1.81975688]
[1761905203347,0.486,3851.0,3850.9,1.81975688]
[1761905208363,0.001,3851.0,3850.9,1.81975688]
[1761905208530,0.001,3851.0,3850.9,2.27155688]
[1761905208731,0.001,3851.0,3850.9,1.81975688]
[1761905210031,0.4826,3851.0,3850.9,1.81975688]
[1761905210632,0.9512,3851.0,3850.9,0.002]
[1761905210825,0.9512,3851.0,3850.9,1.81975688]
[1761905212337,0.001,3851.0,3850.9,2.29795688]
[1761905212733,0.001,3851.0,3850.9,1.81975688]
[1761905213068,0.4826,3851.0,3850.9,1.81975688]
[1761905213240,0.9512,3851.0,3850.9,1.81975688]
[1761905213749,0.4826,3851.0,3850.9,1.81975688]
[1761905213929,0.001,3851.0,3850.9,1.81975688]
[1761905214332,0.9512,3851.0,3850.9,0.002]
[1761905216244,2.76890968,3851.0,3850.9,0.002]
[1761905216446,4.16858968,3851.0,3850.9,0.002]
[1761905218484,11.35190768,3851.0,3850.9,0.002]
[1761905218982,9.74553368,3851.0,3850.9,0.002]
[1761905219398,6.34980168,3851.0,3850.9,0.002]
[1761905221949,4.16858968,3851.0,3850.9,0.002]
[1761905222179,2.35088,3851.0,3850.9,0.002]
[1761905222480,4.16858968,3851.0,3850.9,0.002]
[1761905222786,2.35088,3851.0,3850.9,0.002]
[1761905223467,0.4826,3851.0,3850.9,0.002]
[1761905223847,0.9512,3851.0,3850.9,0.002]
[1761905225887,0.001,3851.0,3850.9,0.4802]
[1761905226187,0.1306,3851.0,3850.9,0.4802]
[1761905227093,0.1306,3851.0,3850.9,2.29795688]
[1761905227490,0.001,3851.0,3850.9,2.75709143]
[1761905228561,0.0002,3851.0,3850.9,2.75709143]
[1761905230075,0.0002,3851.0,3850.9,3.23059143]
[1761905230391,0.0002,3851.0,3850.9,2.75709143]
[1761905231091,0.0002,3851.0,3850.9,3.23059143]
[1761905231298,0.0002,3851.0,3850.9,2.75709143]
[1761905231897,0.0002,3851.0,3850.9,2.88669143]
[1761905232098,0.0002,3851.0,3850.9,3.36019143]
[1761905232899,0.0002,3851.0,3850.9,2.88669143]
[1761905233271,0.0002,3851.0,3850.9,2.40849143]
[1761905233806,0.0002,3851.0,3850.9,2.88669143]
[1761905234168,0.0002,3851.0,3850.9,2.91265938]
[1761905234410,0.0002,3851.0,3850.9,3.48979143]
[1761905234608,0.0002,3851.0,3850.9,1.19853455]
[1761905234786,0.0002,3851.0,3850.9,0.7394]
[1761905234988,0.0002,3851.0,3850.9,2.55715688]
[1761905235414,0.4818,3851.0,3850.9,0.1316]
[1761905236807,0.6114,3851.0,3850.9,0.1316]
[1761905237593,0.1298,3851.0,3850.9,0.1316]
[1761905239608,0.6066,3851.0,3850.9,0.1316]
[1761905242193,0.1298,3851.0,3850.9,0.6011]
[1761905242987,0.1298,3851.0,3850.9,0.1316]
[1761905243596,0.1298,3851.0,3850.9,0.6011]
[1761905243814,0.1298,3851.0,3850.9,0.1316]
[1761905244897,0.1298,3851.0,3850.9,0.6011]
[1761905246824,0.1298,3851.0,3850.9,2.28925688]
[1761905247001,0.0002,3851.0,3850.9,3.64856553]
[1761905249033,0.0002,3851.0,3850.9,3.16986553]
[1761905249538,0.0002,3851.0,3850.9,3.64856553]
[1761905253836,0.0004,3851.4,3851.2,1.81760052]
[1761905254039,0.0004,3851.4,3851.3,0.4695]
[1761905254745,0.0004,3851.4,3851.3,2.28706809]
[1761905255040,0.0004,3851.4,3851.3,3.28791533]
[1761905256334,0.0004,3851.4,3851.3,2.80921533]
[1761905257555,0.0004,3851.4,3851.3,2.93981533]
[1761905258059,0.0004,3851.4,3851.3,1.12224724]
[1761905258360,0.0004,3851.4,3851.3,0.1306]
[1761905258856,0.0004,3851.4,3851.3,2.41766809]
[1761905259056,0.0004,3851.4,3851.3,0.6001]
[1761905259858,0.0004,3851.4,3851.3,2.41766809]
[1761905263960,0.0004,3851.4,3851.3,0.6001]
[1761905265254,0.0004,3851.4,3851.3,2.41766809]
[1761905265427,0.0004,3851.4,3851.3,2.92058177]
[1761905266830,0.0004,3851.4,3851.3,4.32026177]
[1761905270746,0.0004,3851.4,3851.3,4.79896177]
[1761905272866,0.0004,3851.4,3851.3,5.33406577]
[1761905273068,0.0004,3851.4,3851.3,3.51649768]
[1761905273368,0.0004,3851.4,3851.3,5.33406577]
[1761905276568,0.0004,3851.4,3851.3,3.93638577]
[1761905276939,0.0004,3851.4,3851.3,3.96235102]
[1761905277859,0.0004,3851.4,3851.3,5.36203102]
[1761905278057,0.0004,3851.4,3851.3,5.33606577]
[1761905278976,0.00880001,3851.7,3851.6,2.22293052]
[1761905278977,0.00840001,3851.7,3851.6,2.22293052]
[1761905279173,0.00840001,3851.7,3851.6,3.45326438]
[1761905279341,0.00840001,3851.7,3851.6,3.93196438]
[1761905279546,0.00840001,3851.7,3851.6,4.16558273]
[1761905279964,0.00840001,3851.7,3851.6,3.68688273]
[1761905280280,0.00840001,3851.7,3851.6,4.16558273]
[1761905282683,1e-08,3851.7,3851.6,5.4096995]
[1761905290465,1e-08,3852.1,3852.0,2.22274179]
[1761905290816,1e-08,3852.1,3852.0,4.4708245]
[1761905290992,1e-08,3852.7,3852.6,2.68265878]
[1761905291180,1e-08,3852.7,3852.6,4.08233878]
[1761905291381,1e-08,3852.7,3852.6,4.56103878]
[1761905291889,1e-08,3852.7,3852.6,5.21393878]
[1761905292187,1e-08,3852.7,3852.6,5.917035]
[1761905292560,1e-08,3852.7,3852.6,6.046635]
[1761905301435,1e-08,3852.7,3852.6,5.567935]
[1761905301716,1e-08,3852.7,3852.6,6.046635]
[1761905303684,1e-08,3852.7,3852.6,5.567935]
[1761905304219,0.00020001,3852.9,3852.8,2.22236446]
[1761905304408,0.00020001,3852.9,3852.8,1.81686046]
[1761905304723,0.68070001,3852.9,3852.8,1.94646046]
[1761905304890,0.68070001,3852.9,3852.8,2.13996046]
[1761905305220,1.14970001,3852.9,3852.8,3.94514446]
[1761905306387,1.14970001,3852.9,3852.8,0.1935]
[1761905306599,1.14970001,3852.9,3852.8,2.01036046]
[1761905306785,1.14970001,3852.9,3852.8,0.1935]
[1761905306985,1.14970001,3852.9,3851.5,1.81744252]
[1761905307188,0.8261,3852.8,3852.6,0.77999368]
[1761905307617,0.9626,3852.7,3852.3,1.8170525]
[1761905307820,0.469,3852.7,3852.2,1.81713228]
[1761905308020,0.469,3852.6,3852.4,0.78003018]
[1761905308242,0.6805,3852.3,3852.2,2.22263628]
[1761905308635,1.1495,3852.3,3852.2,2.22263628]
[1761905308922,1.1495,3852.3,3852.2,0.6805]
[1761905310144,1.1495,3852.3,3852.2,2.49764345]
[1761905312446,1.1495,3852.3,3852.2,0.6805]
[1761905312610,1.1495,3852.3,3852.1,0.002]
[1761905312805,0.8226,3852.2,3852.1,0.002]
[1761905315706,0.8226,3852.2,3852.1,1.81919062]
[1761905317649,0.3536,3852.2,3852.1,1.81919062]
[1761905318145,0.8226,3852.2,3852.1,1.81919062]
[1761905318513,0.8226,3852.2,3852.1,0.002]
[1761905318920,0.8226,3852.2,3852.1,1.81919062]
[1761905320161,0.8226,3852.2,3852.1,0.002]
[1761905321334,2.63974345,3852.2,3852.1,0.002]
[1761905321827,1.81728497,3851.9,3851.8,0.002]
[1761905322029,1.81728497,3851.9,3851.1,0.11404325]
[1761905322030,0.4862,3851.3,3850.0,0.002]
[1761905322225,0.5274,3850.9,3850.0,0.002]
[1761905322461,0.4893,3850.7,3850.0,0.002]
[1761905322864,0.9583,3850.7,3850.0,0.002]
[1761905323035,0.9583,3850.7,3850.0,1.82016929]
[1761905323241,0.9583,3850.7,3850.0,0.002]
[1761905325446,0.9583,3850.7,3850.0,1.82017822]
[1761905326936,0.9583,3850.7,3850.0,1.82017012]
[1761905327373,0.9583,3850.7,3850.2,1.82004449]
[1761905328035,0.9583,3850.7,3850.2,0.002]
[1761905329436,0.9575,3850.7,3850.2,0.002]
[1761905329834,1.39968,3850.2,3848.7,0.002]
[1761905330048,0.479,3849.6,3848.7,0.002]
[1761905330274,0.3566,3849.2,3848.7,0.002]
[1761905330641,0.8109,3849.2,3848.7,0.002]
[1761905336095,0.9405,3849.2,3848.7,0.002]
[1761905337301,1.28815179,3849.1,3848.7,0.002]
[1761905337500,0.4778,3848.9,3848.7,0.002]
[1761905337691,0.658,3848.9,3848.7,0.002]
[1761905338008,1.1123,3848.9,3848.7,0.002]
[1761905340278,0.4778,3848.9,3848.7,0.002]
[1761905340487,1.28815179,3849.1,3848.7,0.002]
[1761905341195,1.28815179,3849.1,3849.0,0.4975]
[1761905341774,1.28815179,3849.1,3848.7,0.1316]
[1761905342078,1.28815179,3849.1,3849.0,0.6271]
[1761905342283,1.28815179,3849.1,3849.0,2.44575419]
[1761905342500,1.77945179,3849.1,3849.0,0.1296]
[1761905343476,1.28815179,3849.1,3849.0,1.94825419]
[1761905343715,1.28815179,3849.1,3849.0,2.44575419]
[1761905343905,1.28815179,3849.1,3849.0,3.39851233]
[1761905344413,1.77945179,3849.1,3849.0,0.1296]
[1761905344604,2.23375179,3849.1,3849.0,0.1296]
[1761905347020,2.23375179,3849.1,3848.8,0.002]
[1761905347201,0.5353,3848.9,3848.8,0.002]
[1761905347612,0.9896,3848.9,3848.8,0.002]
[1761905353227,0.3551,3848.9,3848.8,0.002]
[1761905353428,1.28815179,3849.1,3849.0,1.81865419]
[1761905353917,1.28815179,3849.1,3848.9,1.81869569]
[1761905354643,1.28735179,3849.1,3849.0,1.81865419]
[1761905355006,1.28735179,3849.1,3848.8,0.91240368]
[1761905355206,1.74165179,3849.1,3848.8,2.73115045]
[1761905355601,1.74165179,3849.1,3848.8,0.91240368]
[1761905355807,0.4913,3848.9,3848.8,0.91240368]
[1761905356030,0.4913,3848.9,3848.8,0.1316]
[1761905356230,0.9456,3848.9,3848.8,0.1316]
[1761905356740,0.4913,3848.9,3848.8,0.1316]
[1761905357252,1.28735179,3849.1,3848.8,0.1316]
[1761905357541,0.4888,3848.9,3848.8,0.1316]
[1761905358758,0.4888,3848.9,3848.8,1.9503487]
[1761905359057,1.28735179,3849.1,3848.8,0.6067]
[1761905359262,1.28735179,3849.1,3849.0,1.81865419]
[1761905359459,1.28735179,3849.1,3848.9,2.29379347]
[1761905359662,1.28735179,3849.1,3848.9,1.81869347]
[1761905360233,0.4625,3849.0,3848.8,0.1316]
[1761905360662,0.4625,3849.0,3848.8,1.9503161]
[1761905361733,0.3437,3848.9,3848.8,0.1316]
[1761905362133,1.28735179,3849.1,3848.8,0.1316]
[1761905362356,1.28735179,3849.1,3848.9,1.81869075]
[1761905362730,1.28735179,3849.1,3849.0,2.29495419]
[1761905362933,1.28735179,3849.1,3849.0,2.75445419]
[1761905363134,1.28735179,3849.1,3849.0,2.29495419]
[1761905363948,1.28735179,3849.1,3849.0,0.4763]
[1761905364251,1.28735179,3849.1,3848.9,0.78077523]
[1761905364455,1.28735179,3849.1,3848.9,2.59947233]
[1761905364776,0.4625,3849.0,3848.9,0.78077523]
[1761905365965,0.4625,3849.0,3848.9,2.59947667]
[1761905366188,1.28835179,3849.1,3848.9,2.59947667]
[1761905366700,1.28835179,3849.1,3848.9,0.78077523]
[1761905366859,0.4625,3849.0,3848.9,0.78077523]
[1761905367060,0.958,3849.0,3848.9,0.78077523]
[1761905367295,0.958,3849.0,3848.8,0.1316]
[1761905367590,0.3427,3848.9,3848.8,0.1316]
[1761905367960,1.0194,3848.9,3848.8,0.1316]
[1761905368160,0.3427,3848.9,3848.8,0.1316]
[1761905368785,1.28835179,3849.1,3849.0,1.81865419]
[1761905368990,1.28835179,3849.1,3848.9,1.81870144]
[1761905369589,1.28835179,3849.1,3849.0,2.29495419]
[1761905369831,1.28835179,3849.1,3849.0,2.75445419]
[1761905369992,1.28835179,3849.1,3849.0,2.29495419]
[1761905370899,1.28835179,3849.1,3849.0,2.75445419]
[1761905371271,1.28835179,3849.1,3849.0,2.29495419]
[1761905372358,1.75085179,3849.1,3848.9,1.81869664]
[1761905372552,1.28835179,3849.1,3849.0,1.81865419]
[1761905372797,1.28835179,3849.1,3849.0,2.29495419]
[1761905374712,1.75085179,3849.1,3849.0,1.81865419]
[1761905375710,1.28835179,3849.1,3849.0,1.81865419]
[1761905375907,1.28835179,3849.1,3849.0,2.29495419]
[1761905376905,1.75085179,3849.1,3848.9,1.81868484]
[1761905377105,0.4955,3849.0,3848.9,1.81868484]
[1761905377324,0.958,3849.0,3848.8,0.1316]
[1761905377607,0.4625,3849.0,3848.8,0.1316]
[1761905378108,1.28835179,3849.1,3849.0,1.81865419]
[1761905378494,1.28835179,3849.1,3848.9,1.81868826]
[1761905378814,1.28835179,3849.1,3849.0,1.81865419]
[1761905379222,1.28835179,3849.1,3848.8,0.1316]
[1761905379427,1.28835179,3849.1,3848.9,1.81866057]
[1761905379591,1.28835179,3849.1,3849.0,2.29495419]
[1761905379796,1.28755179,3849.1,3849.0,2.29495419]
[1761905382606,1.28755179,3849.1,3849.0,0.4763]
[1761905383170,1.28755179,3849.1,3848.9,1.81869167]
[1761905383520,0.4625,3849.0,3848.8,0.1316]
[1761905383722,0.4625,3848.9,3848.8,0.1316]
[1761905384539,0.958,3848.9,3848.8,0.1316]
[1761905390142,0.4625,3848.9,3848.8,0.1316]
[1761905390345,0.9245,3848.9,3848.8,0.1316]
[1761905401587,1.28755179,3849.1,3849.0,1.81865419]
[1761905401763,1.28755179,3849.1,3849.0,2.30515419]
[1761905402079,1.28755179,3849.1,3849.0,2.79965419]
[1761905402282,1.28755179,3849.1,3848.9,1.81869832]
[1761905402685,0.9128,3849.0,3848.8,0.1316]
[1761905402886,0.3873,3848.9,3848.8,0.1316]
[1761905403092,0.8493,3848.9,3848.8,0.1316]
[1761905403598,0.8493,3848.9,3848.8,1.9503487]
[1761905403880,0.8493,3848.9,3848.8,0.1316]
[1761905405062,0.8485,3848.9,3848.8,0.1316]
[1761905405271,0.8485,3848.9,3848.8,1.9503487]
[1761905405471,0.3865,3848.9,3848.8,0.1316]
[1761905405679,0.8485,3848.9,3848.8,0.1316]
[1761905406562,0.8485,3848.9,3848.8,0.002]
[1761905407269,0.9781,3848.9,3848.8,0.002]
[1761905413306,1.28755179,3849.1,3848.9,1.39968]
[1761905413606,1.28755179,3849.1,3849.0,0.4865]
[1761905414108,1.73835179,3849.1,3848.8,1.820742]
[1761905414266,1.73835179,3849.1,3848.9,1.81869903]
[1761905414861,1.28755179,3849.1,3849.0,2.30515419]
[1761905415414,1.28755179,3849.1,3849.0,0.4865]
[1761905416411,1.28755179,3849.1,3849.0,2.30515419]
[1761905417975,1.28755179,3849.1,3849.0,4.80622162]
[1761905421186,1.28755179,3849.1,3849.0,4.78024085]
[1761905421582,1.28755179,3849.1,3849.0,4.30704085]
[1761905424593,1.28755179,3849.1,3849.0,4.77074085]
[1761905427846,1.28755179,3849.1,3849.0,5.5514409]
[1761905428045,1.28755179,3849.1,3849.0,5.6810409]
[1761905430138,1.28675179,3849.1,3849.0,5.6810409]
[1761905431462,1.28675179,3849.1,3849.0,4.6868649]
[1761905431622,1.28675179,3849.1,3849.0,4.71284567]
[1761905433072,1e-08,3849.1,3849.0,6.11252567]
[1761905433280,1e-08,3849.1,3849.0,6.0865449]
[1761905438996,1e-08,3849.1,3849.0,5.6228449]
[1761905439564,1e-08,3849.1,3849.0,6.0865449]
[1761905443071,1e-08,3849.1,3849.0,6.0865449]
[1761905450331,1e-08,3849.1,3849.0,6.0885449]
[1761905451998,1e-08,3849.1,3849.0,5.6248449]
[1761905452610,1e-08,3849.1,3849.0,5.1383449]
[1761905455419,0.00020001,3849.3,3849.2,2.2240637]
[1761905455620,0.49490001,3849.3,3849.2,2.2240637]
[1761905455820,0.96710001,3849.3,3849.2,2.3536637]
[1761905456021,0.96710001,3849.3,3849.2,2.84856371]
[1761905456192,0.96710001,3849.3,3849.2,4.24824371]
[1761905457386,0.47240001,3849.3,3849.2,4.24824371]
[1761905457731,0.00020001,3849.3,3849.2,4.91555417]
[1761905460190,0.47240001,3849.3,3849.2,3.84273971]
[1761905460428,0.96710001,3849.3,3849.2,3.71313971]
[1761905461531,0.00020001,3849.3,3849.2,4.57054371]
[1761905461696,0.00020001,3849.3,3849.2,5.05204371]
[1761905462725,0.00020001,3849.3,3849.2,5.07802313]
[1761905463023,0.00020001,3849.3,3849.2,5.78601086]
[1761905463224,0.00020001,3849.3,3849.2,5.76003144]
[1761905467655,0.00020001,3849.3,3849.2,5.27853144]
[1761905468437,0.00020001,3849.3,3849.2,5.76003144]
[1761905470362,0.00020001,3849.3,3849.2,5.88963144]
[1761905471059,0.47240001,3849.3,3849.2,4.95623144]
[1761905471250,0.00020001,3849.3,3849.2,4.95623144]
[1761905473759,0.00020001,3849.3,3849.2,5.40813144]
[1761905475933,0.00020001,3849.3,3849.2,4.95623144]
[1761905476570,0.00020001,3849.3,3849.2,5.40813144]
[1761905480363,0.00020001,3849.3,3849.2,4.95623144]
[1761905480558,0.00040001,3849.5,3849.4,1.81846521]
[1761905480764,0.47740001,3849.5,3849.4,1.81846521]
[1761905480963,0.97140001,3849.5,3849.4,1.94806521]
[1761905481163,0.97140001,3849.5,3849.4,4.45312488]
[1761905482246,0.49440001,3849.5,3849.4,4.45312488]
[1761905485375,0.97140001,3849.5,3849.4,4.45312488]
[1761905485580,0.97140001,3849.5,3849.4,3.82514522]
[1761905485779,0.97140001,3849.5,3849.4,2.42546522]
[1761905494401,0.97140001,3849.5,3849.4,1.94806521]
[1761905501010,0.97140001,3849.5,3849.4,1.95006521]
[1761905505747,0.97060001,3849.5,3849.4,1.95006521]
[1761905509846,0.001,3849.7,3849.6,1.81837073]
[1761905510344,0.4776,3849.7,3849.6,1.94797073]
[1761905510546,0.001,3849.7,3849.6,2.59937073]
[1761905512514,0.4776,3849.7,3849.6,2.13527073]
[1761905512916,0.001,3849.7,3849.6,2.13527073]
[1761905514315,0.001,3849.7,3849.6,2.59937073]
[1761905514517,0.001,3849.7,3849.6,2.13527073]
[1761905516739,0.001,3849.7,3849.6,2.59937073]
[1761905518357,0.001,3849.7,3849.6,2.13527073]
[1761905519754,0.959,3849.7,3849.6,2.13527073]
[1761905520253,0.959,3849.7,3849.6,1.81837073]
[1761905522057,0.959,3849.7,3849.5,0.002]
[1761905522357,0.9453,3849.6,3849.5,0.002]
[1761905528658,9.27450204,3849.6,3849.5,0.002]
[1761905529243,4.45823604,3849.6,3849.5,0.002]
[1761905529443,34.88376669,3849.6,3849.5,0.002]
[1761905529670,28.67186269,3849.6,3849.5,0.002]
[1761905529987,26.64459569,3849.6,3849.5,0.002]
[1761905530461,24.07100669,3849.6,3849.5,0.002]
[1761905530666,23.64547604,3849.6,3849.5,0.002]
[1761905530980,23.64467604,3849.6,3849.5,0.002]
[1761905531382,25.17954504,3849.6,3849.5,0.002]
[1761905531782,24.2820711,3849.6,3849.5,0.002]
[1761905532385,35.3926101,3849.6,3849.5,0.002]
[1761905537283,23.1028321,3849.6,3849.5,0.002]
[1761905537461,30.8369911,3849.6,3849.5,0.002]
[1761905537888,28.7694941,3849.6,3849.5,0.002]
[1761905538494,35.3926101,3849.6,3849.5,0.002]
[1761905538788,29.4737191,3849.6,3849.5,0.002]
[1761905539574,33.0320201,3849.6,3849.5,0.002]
[1761905539903,32.5737971,3849.6,3849.5,0.002]
[1761905540094,32.3437971,3849.6,3849.5,0.002]
[1761905540668,22.5161391,3849.6,3849.5,0.002]
[1761905541569,24.7010831,3849.6,3849.5,0.002]